{"text_format":"1","workbook":"xlsx","n_sheets":18,"sheets":["Start here","The building blocks","Institutions","Policy & legislation","Planning","Finance","Regulation & accountability","Monitoring","Infrastructure (development)","Infrastructure (management)","Water resource management","Learning & adaptation","Summary","Template","Statements","References","Icons","Graphics"],"not_rendered":{"charts":0,"images":30,"macros":1,"external_links":0,"defined_names":165,"comments":2,"pivot_tables":0},"unopened":[],"bounds":{"document_bytes":16777216,"sheet_cells":100000,"rows_first":2000,"rows_last":500,"rows_between":2000,"halvings":0,"cell_chars":16384,"cell_head_chars":4096},"cells_cut":0,"cells_raw":0,"read":"whole","date_system":"1900"}

{"sheet":"Start here","index":0,"n_rows":25,"n_cols":12,"rows_kept":25,"cut":false,"hidden":false,"merged":[[11,3,11,4],[13,3,13,4],[14,3,14,4],[10,3,10,4],[1,2,1,5],[2,2,2,5],[5,2,5,5],[7,3,7,4],[8,3,8,4],[24,2,24,5],[19,2,19,5],[20,2,20,5],[21,2,21,5],[22,2,22,5],[23,2,23,5]]}
[]
[]
[null,null,"WASH system building block assessment tool"]
[]
[]
[null,null,"Please fill out the following fields and press \"GO\".\nThis will generate the statements to assess the WASH system building blocks."]
[]
[null,null,"First name:"]
[null,null,"Last name:"]
[]
[null,null,"Country:"]
[null,null,"District:"]
[null,null,null,null,null,null,null,null,null," "]
[null,null,"Level:"]
[null,null,"Sector:"]
[]
[]
[]
[null,null,null,null,null,null,null,null,null,null,null,"`"]
[null,null,"About this tool\nThis tool has been developed by IRC as a quick and easy method to assess the functioning of the building block of the WASH system at national or district level for the water, sanitation, hygiene (WASH) sector. It can also be used to asess WASH services away from home (i.e. at schools and health care facilities). \n"]
[null,null,"How does it work?\nEach building block is assessed by scoring statements with a score of 1-5. Where 1 stands for non-existent/very weak and a score of 5 means fully compliant/very strong or a score or not applicable (N/A). \n\nNext to a score (1-5 or not applicable) per statement, users are asked to provide a short narrative explaining the reasoning behind the score and possible sources or references. References can support the reasoning behind the score that is given. Together the statements produce an average score for each building block that is visualized with a traffic light score (from red to dark green). Next to the average score, users are asked to provide a short narrative explaining the reasoning behind the average score.\n\nThe building blocks for the sectors hygiene and WASH away from home are scored with a single statement and therefore no average score is produced per building block. "]
[null,null,"Context dependent\nStatements change depending on the context. There are different statements per:\n  •  Level: statements change depending on the building block for the national or district level\n  •  Sector: statements are different for water, sanitation, hygiene, and scoring WASH away from home"]
[null,null,"Snapshot summary\nA summary overview is created of the average scores for all nine building blocks, providing a snap shot of the building blocks that are weak (or strong) in your context. \nThis snap shot gives entry points on where to start strengthening the system. It can help to start a discussion with other stakeholders on the status of the system, how to coordinate, align and target interventions for greater effect."]
[null,null,"Multi-functional tool\nThis tool has been developed for the online course ‘The building blocks of sustainable WASH services’ available on the WASH Systems Academy. It can also be used as a stand alone tool to assess the functioning of the building blocks in a country or district in a workshop with multiple actors or by single individuals. For more information see www.washsystemsacademy.org"]
[null,null,"Notes\n1) The term ‘district’ is used as a blanket term for the most appropriate level of local government that carries out the relevant service authority functions. It will have a different name in different countries: gram panchayat, woreda, commune, district, county etc. \n2) The scoring and assessment do not attempt to compare the relative strength of the building blocks between districts or countries. This is mainly because the assessments are of a subjective nature; without clear definitions of assigned scores (between 1 and 5). This is left to the judgement of the person or people who have carried out the assessment.\n3) The WASH system strengthening approach (and the building blocks) can be adapted to your own context. The precise number of building blocks and their definitions are subjective. We have defined it as nine building blocks. The core element of systems strengthening is that for WASH services to be delivered, all the building blocks must be working to a minimum level. "]

{"sheet":"The building blocks","index":1,"n_rows":12,"n_cols":11,"rows_kept":12,"cut":false,"hidden":false,"merged":[[11,2,15,11],[3,3,3,11],[1,2,1,11],[2,2,2,11],[5,3,5,4],[4,4,4,11],[10,2,10,11],[6,3,6,4],[7,3,7,4],[9,4,9,5]]}
[]
[]
[null,null,"The building blocks of sustainable WASH systems"]
[null,null,null,"\nA WASH systems strengthening approach is based on the fact that sustainable WASH services can only be delivered by strong systems. It works by applying the systems that are strong, changing the systems that are weak, and building the systems that are non-existent.\n\nThere are many elements that determine the strength of a WASH system to deliver sustainable services for all. We have divided them into nine building blocks. \n\nPlace your mouse over the hexagons in the infographic below to explore the nine building blocks of sustainable WASH systems."]
[]
[null,null,null,"Policy & Legislation"]
[null,null,null,"Institutions",null,null,null,null,null,null,"Infrastructure"]
[null,null,null,"Planning",null,null,null,null,null,null,"Learning & adaptation"]
[null,null,null,null,null,null,null,null,null,null,"Water resource management"]
[null,null,null,null,"Finance",null,"Monitoring","Regulation & accountability"]
[null,null,"\nAssessing the building blocks\nBy assessing the status of each building block and the linkages between them, WASH practitioners can identify weak points and target their interventions for greater effect.\n\nThe building blocks help make a WASH system easier to understand. You can use them to analyse a complex WASH system and to identify areas that need further support. \n\nWhat is important is to identify the building blocks that:\n  •  capture all the functions and relationships needed for a sustainable and effective WASH system in your area\n  •  use terms and definitions that make sense to the local WASH actors who work with them\n\nThe WASH systems strengthening approach helps users to see where a failure in one or more of the building blocks is causing a failure in service delivery. The only way to improve the sustainability of services is by changing and improving the system.\n\nAll the building blocks need to be present and working at least minimally for WASH services to work. We have rarely seen cases where services are sustained in the absence of these building blocks.\n\nThe WASH system's building blocks are not inert objects, but living processes. "]
[null,null,"Many of them overlap and interact, and their importance will change according to time or context. Putting these building blocks in place is not a simple one-off activity. It's a progressive and iterative process. Strengthening one building block can lead to positive changes in others, while major improvements in a few blocks may not always achieve the desired results without improvements in others.\n\nIf you want to strengthen the WASH system, you need to identify which of the building blocks has the greatest potential to improve your current situation. \n\nBy identifying and addressing existing strengths and weaknesses, we can maximise gains and contribute to better, longer-lasting outcomes. "]

{"sheet":"Institutions","index":2,"n_rows":17,"n_cols":5,"rows_kept":17,"cut":false,"hidden":false,"merged":[[1,1,1,4],[2,1,2,4],[3,1,3,4],[17,1,22,3]]}
[]
[]
[null,"Institutions"]
[null,"The organisations, their coordination, roles, interactions and rules that govern them in a country and its WASH sector."]
[]
[null,"Completed by:",{"$f":"First_Name&\" \"&Last_Name","v":" "}]
[null,"Country / District:",{"$f":"Country & \" / \" & District","v":" / "}]
[null,"Level / Sector:","National / Sanitation"]
[]
[null,"Statement","Score","Narrative","Evidence or source"]
[null,"Responsibilities of the national and decentralised level bodies are clearly defined, and there are no gaps or overlaps between them."]
[null,"Staffing requirements at national level (ministries, departments except the service authority) and decentralised bodies are clearly defined and the positions at national level are filled."]
[null,"The responsibilities and institutional set-up for service authorities for the different Service Delivery Models are clearly defined and understood."]
[null,"Staffing requirements for the service authorities for the different Service Delivery Models are clearly defined in terms of number of fulltime-equivalent (FTE), or specific job profiles."]
[null,"Average score:",{"$f":"IFERROR(SUBTOTAL(101,tblInstitutions[Score]),\"\")","v":""}]
[]
[null,"Additional narrative to support average score:"]

{"sheet":"Policy & legislation","index":3,"n_rows":17,"n_cols":5,"rows_kept":17,"cut":false,"hidden":false,"merged":[[1,1,1,4],[2,1,2,4],[3,1,3,4],[17,1,22,3]]}
[]
[]
[null,"Policy & legislation"]
[null,"Government's vision and strategy (policy) and legal framework (legislation) for delivering WASH services."]
[]
[null,"Completed by:",{"$f":"First_Name&\" \"&Last_Name","v":" "}]
[null,"Country / District:",{"$f":"Country & \" / \" & District","v":" / "}]
[null,"Level / Sector:","National / Sanitation"]
[]
[null,"Statement","Score","Narrative","Evidence or source"]
[null,"National Sector Policy and Strategy is in place."]
[null,"Legal framework for the sector is in place. "]
[null,"Norms and standards for quality of works and service delivery are in place."]
[null,"National guidelines for development and management of services are in place."]
[null,"Average score:",{"$f":"IFERROR(SUBTOTAL(101,tblPolicylegislation[Score]),\"\")","v":""}]
[]
[null,"Additional narrative to support average score:"]

{"sheet":"Planning","index":4,"n_rows":18,"n_cols":5,"rows_kept":18,"cut":false,"hidden":false,"merged":[[1,1,1,4],[2,1,2,4],[3,1,3,4],[18,1,23,3]]}
[]
[]
[null,"Planning"]
[null,"Making plans and securing budgets to execute those plans to deliver WASH services."]
[]
[null,"Completed by:",{"$f":"First_Name&\" \"&Last_Name","v":" "}]
[null,"Country / District:",{"$f":"Country & \" / \" & District","v":" / "}]
[null,"Level / Sector:","National / Sanitation"]
[]
[null,"Statement","Score","Narrative","Evidence or source"]
[null,"National planning mechanisms exist and they are based on a vision for reaching the WASH targets."]
[null,"Planning and budgeting is coordinated with donors."]
[null,"The national plans take into account both capital investment needs and the needs to ensure sustainable service delivery direct support and capital maintenance."]
[null,"The national plans take into account in-country differences (in terms of geography, demography and water resources), recognising the different Service Delivery Models."]
[null,"The national plan reflects and takes into consideration the planning done at decentralised level and vice versa."]
[null,"Average score:",{"$f":"IFERROR(SUBTOTAL(101,tblPlanning[Score]),\"\")","v":""}]
[]
[null,"Additional narrative to support average score:"]

{"sheet":"Finance","index":5,"n_rows":18,"n_cols":5,"rows_kept":18,"cut":false,"hidden":false,"merged":[[1,1,1,4],[2,1,2,4],[3,1,3,4],[18,1,23,3]]}
[]
[]
[null,"Finance"]
[null,"All of the costs and how to meet them, to provide sustainable services."]
[]
[null,"Completed by:",{"$f":"First_Name&\" \"&Last_Name","v":" "}]
[null,"Country / District:",{"$f":"Country & \" / \" & District","v":" / "}]
[null,"Level / Sector:","National / Sanitation"]
[]
[null,"Statement","Score","Narrative","Evidence or source"]
[null,"Funding mechanisms and flows can be identified for the cost components of capital expenditure, capital maintenance, direct support and indirect support. There are no redundancies."]
[null,"All the cost components are covered/taken into account in the sector budget. There are no budget gaps."]
[null,"There are subsidies/subsidy mechanisms to address equity; cross subsidy and targeted subsidy for latrines."]
[null,"It is defined who is responsible for paying capital expenditure and capital maintenance."]
[null,"Sector budgets and expenditures are justified in parliament with sector performance data."]
[null,"Average score:",{"$f":"IFERROR(SUBTOTAL(101,tblFinance[Score]),\"\")","v":""}]
[]
[null,"Additional narrative to support average score:"]

{"sheet":"Regulation & accountability","index":6,"n_rows":16,"n_cols":5,"rows_kept":16,"cut":false,"hidden":false,"merged":[[1,1,1,4],[2,1,2,4],[3,1,3,4],[16,1,21,3]]}
[]
[]
[null,"Regulation & accountability"]
[null,"Effectively holding decision makers, service providers and service users to account."]
[]
[null,"Completed by:",{"$f":"First_Name&\" \"&Last_Name","v":" "}]
[null,"Country / District:",{"$f":"Country & \" / \" & District","v":" / "}]
[null,"Level / Sector:","National / Sanitation"]
[]
[null,"Statement","Score","Narrative","Evidence or source"]
[null,"There is a regulator for the services or regulatory functions are delegated to sub-national institutions (through contracts)."]
[null,"The entity equipped with regulatory functions sets tariffs for sewerage connections and/or emptying fees, rules for private emptying and for private sector players on-site (emptying techniques, transport and disposal)."]
[null,"The entity equipped with regulatory functions uses data (monitoring data, audits, score cards) to guide performance management, and apply effective enforcement (incentives, penalties) in the three areas of regulation mentioned in the previous statement."]
[null,"Average score:",{"$f":"IFERROR(SUBTOTAL(101,tblRegulationaccountability[Score]),\"\")","v":""}]
[]
[null,"Additional narrative to support average score:"]

{"sheet":"Monitoring","index":7,"n_rows":18,"n_cols":5,"rows_kept":18,"cut":false,"hidden":false,"merged":[[1,1,1,4],[2,1,2,4],[3,1,3,4],[18,1,23,3]]}
[]
[]
[null,"Monitoring"]
[null,"Collecting and using data to ensure the quality and sustainability of WASH services. Getting actionable information into the hands of those responsible for planning and decision making."]
[]
[null,"Completed by:",{"$f":"First_Name&\" \"&Last_Name","v":" "}]
[null,"Country / District:",{"$f":"Country & \" / \" & District","v":" / "}]
[null,"Level / Sector:","National / Sanitation"]
[]
[null,"Statement","Score","Narrative","Evidence or source"]
[null,"There is a national monitoring framework. The different sectoral monitoring systems speak to each other, in particular to the National Bureau of Statistics."]
[null,"The monitoring systems include service delivery indicators (service level, service provider performance, service authority performance) and is covering the whole sanitation supply chain (include faecal sludge management)."]
[null,"The monitoring systems actively cover the entire country (all districts, all communities, all service providers)."]
[null,"The data from the monitoring system are analysed and used at sector level for macro-level planning, trends analysis and policy making."]
[null,"The data in the national monitoring system are regularly updated."]
[null,"Average score:",{"$f":"IFERROR(SUBTOTAL(101,tblMonitoring[Score]),\"\")","v":""}]
[]
[null,"Additional narrative to support average score:"]

{"sheet":"Infrastructure (development)","index":8,"n_rows":18,"n_cols":5,"rows_kept":18,"cut":false,"hidden":false,"merged":[[1,1,1,4],[2,1,2,4],[3,1,3,4],[18,1,23,3]]}
[]
[]
[null,"Infrastructure (development)"]
[null,"Building, maintaining and operating the essential physical structures that deliver WASH services."]
[]
[null,"Completed by:",{"$f":"First_Name&\" \"&Last_Name","v":" "}]
[null,"Country / District:",{"$f":"Country & \" / \" & District","v":" / "}]
[null,"Level / Sector:","National / Sanitation"]
[]
[null,"Statement","Score","Narrative","Evidence or source"]
[null,"The project delivery models and procurement procedures for capital expenditure projects (subsidies for onsite sanitation infrastructure, public latrines, treatment facilities, sewers) are clearly articulated in government-sanctioned implementation manuals."]
[null,"The project delivery models and procedures are sufficiently differentiated for different segments of the population and articulated with the service delivery models."]
[null,"There are mechanisms and capacity in place to ensure due diligence, regulation and control over procurement."]
[null,"The project delivery models ensure good quality of works and of the institutional development process."]
[null,"The manuals for project delivery are followed by the different national-level stakeholders."]
[null,"Average score:",{"$f":"IFERROR(SUBTOTAL(101,tblInfrastructuredevelopment[Score]),\"\")","v":""}]
[]
[null,"Additional narrative to support average score:"]

{"sheet":"Infrastructure (management)","index":9,"n_rows":17,"n_cols":5,"rows_kept":17,"cut":false,"hidden":false,"merged":[[1,1,1,4],[2,1,2,4],[3,1,3,4],[17,1,22,3]]}
[]
[]
[null,"Infrastructure (management)"]
[null,"Building, maintaining and operating the essential physical structures that deliver WASH services."]
[]
[null,"Completed by:",{"$f":"First_Name&\" \"&Last_Name","v":" "}]
[null,"Country / District:",{"$f":"Country & \" / \" & District","v":" / "}]
[null,"Level / Sector:","National / Sanitation"]
[]
[null,"Statement","Score","Narrative","Evidence or source"]
[null,"Asset ownership is clearly defined in laws and regulation."]
[null,"An inventory exists of all (or most) infrastructure assets (including public latrines), including age and current physical state of assets."]
[null,"The roles and responsibilities for asset management are clearly defined and separated between service providers and authorities, including differentiation between minor and major maintenance (not including households)."]
[null,"Asset management is operationalised through standard tools, guidelines and trainings."]
[null,"Average score:",{"$f":"IFERROR(SUBTOTAL(101,tblInfrastructuremanagement[Score]),\"\")","v":""}]
[]
[null,"Additional narrative to support average score:"]

{"sheet":"Water resource management","index":10,"n_rows":16,"n_cols":5,"rows_kept":16,"cut":false,"hidden":false,"merged":[[1,1,1,4],[2,1,2,4],[3,1,3,4],[16,1,21,3]]}
[]
[]
[null,"Water resource management"]
[null,"The efficient (re)use and allocation of water sources to minimise conflicts and maximise collective gains."]
[]
[null,"Completed by:",{"$f":"First_Name&\" \"&Last_Name","v":" "}]
[null,"Country / District:",{"$f":"Country & \" / \" & District","v":" / "}]
[null,"Level / Sector:","National / Sanitation"]
[]
[null,"Statement","Score","Narrative","Evidence or source"]
[null,"There is legislation and/or policy in place that clearly defines priorities and processes related to interference with water bodies and aquifers, regulation and water uses."]
[null,"There are national and sub-national water resource management institutions in place and able to undertake their mandated functions in the area of sanitation for water resource management  (catchment authorities, river basin authorities)."]
[null,"There are mechanisms or platforms in place to allow representation of service authorities and/or service providers for WASH services in Water Resource Managment bodies."]
[null,"Average score:",{"$f":"IFERROR(SUBTOTAL(101,tblWaterresourcemanagement[Score]),\"\")","v":""}]
[]
[null,"Additional narrative to support average score:"]

{"sheet":"Learning & adaptation","index":11,"n_rows":17,"n_cols":5,"rows_kept":17,"cut":false,"hidden":false,"merged":[[1,1,1,4],[2,1,2,4],[3,1,3,4],[17,1,22,3]]}
[]
[]
[null,"Learning & adaptation"]
[null,"The ability to adapt in the face of change–building a resilient WASH sector.  "]
[]
[null,"Completed by:",{"$f":"First_Name&\" \"&Last_Name","v":" "}]
[null,"Country / District:",{"$f":"Country & \" / \" & District","v":" / "}]
[null,"Level / Sector:","National / Sanitation"]
[]
[null,"Statement","Score","Narrative","Evidence or source"]
[null,"There are institutionalised learning platforms and/or mechanisms at sector level (joint sector reviews, donor platforms, donor-government platforms, national learning alliance, thematic working groups, resource centres, sector web sites)."]
[null,"The platforms are sufficiently representative of the different sector stakeholders."]
[null,"The reflections from these platforms are systematically taken up in policies and strategies through \"undertakings\" (targeted actions)."]
[null,"The national platforms are linked to the decentralised level."]
[null,"Average score:",{"$f":"IFERROR(SUBTOTAL(101,tblLearningadaptation[Score]),\"\")","v":""}]
[]
[null,"Additional narrative to support average score:"]

{"sheet":"Summary","index":12,"n_rows":20,"n_cols":4,"rows_kept":20,"cut":false,"hidden":false,"merged":[[1,2,1,5],[2,2,2,5],[20,2,25,4]]}
[]
[]
[null,null,"Summary of building block scores"]
[null,null,"Completed by:",{"$f":"First_Name&\" \"&Last_Name","v":" "}]
[null,null,"Country / District:",{"$f":"Country & \" / \" & District","v":" / "}]
[null,null,"Level / Sector:","National / Sanitation"]
[]
[null,null,"Building Block","Score"]
[null,null,"Institutions",{"$f":"IFERROR(INDIRECT(\"tbl\"&StripBadChars(tblSummary[[#This Row],[Building Block]],\" &()\")&\"[[#Totals],[Score]]\"),\"\")","v":""}]
[null,null,"Policy & legislation",{"$f":"IFERROR(INDIRECT(\"tbl\"&StripBadChars(tblSummary[[#This Row],[Building Block]],\" &()\")&\"[[#Totals],[Score]]\"),\"\")","v":""}]
[null,null,"Planning",{"$f":"IFERROR(INDIRECT(\"tbl\"&StripBadChars(tblSummary[[#This Row],[Building Block]],\" &()\")&\"[[#Totals],[Score]]\"),\"\")","v":""}]
[null,null,"Finance",{"$f":"IFERROR(INDIRECT(\"tbl\"&StripBadChars(tblSummary[[#This Row],[Building Block]],\" &()\")&\"[[#Totals],[Score]]\"),\"\")","v":""}]
[null,null,"Regulation & accountability",{"$f":"IFERROR(INDIRECT(\"tbl\"&StripBadChars(tblSummary[[#This Row],[Building Block]],\" &()\")&\"[[#Totals],[Score]]\"),\"\")","v":""}]
[null,null,"Monitoring",{"$f":"IFERROR(INDIRECT(\"tbl\"&StripBadChars(tblSummary[[#This Row],[Building Block]],\" &()\")&\"[[#Totals],[Score]]\"),\"\")","v":""}]
[null,null,"Infrastructure (development)",{"$f":"IFERROR(INDIRECT(\"tbl\"&StripBadChars(tblSummary[[#This Row],[Building Block]],\" &()\")&\"[[#Totals],[Score]]\"),\"\")","v":""}]
[null,null,"Infrastructure (management)",{"$f":"IFERROR(INDIRECT(\"tbl\"&StripBadChars(tblSummary[[#This Row],[Building Block]],\" &()\")&\"[[#Totals],[Score]]\"),\"\")","v":""}]
[null,null,"Water resource management",{"$f":"IFERROR(INDIRECT(\"tbl\"&StripBadChars(tblSummary[[#This Row],[Building Block]],\" &()\")&\"[[#Totals],[Score]]\"),\"\")","v":""}]
[null,null,"Learning & adaptation",{"$f":"IFERROR(INDIRECT(\"tbl\"&StripBadChars(tblSummary[[#This Row],[Building Block]],\" &()\")&\"[[#Totals],[Score]]\"),\"\")","v":""}]
[]
[null,null,"Narrative to support summary scores:"]

{"sheet":"Template","index":13,"n_rows":14,"n_cols":5,"rows_kept":14,"cut":false,"hidden":true,"merged":[[2,1,2,4],[1,1,1,4],[3,1,3,4],[14,1,19,3]]}
[]
[]
[null,"Template"]
[null,"Description goes here"]
[]
[null,"Completed by:",{"$f":"First_Name&\" \"&Last_Name","v":" "}]
[null,"Country / District:",{"$f":"Country & \" / \" & District","v":" / "}]
[null,"Level / Sector:"]
[]
[null,"Statement","Score","Narrative","Evidence or source"]
[]
[null,"Average score:",{"$f":"IFERROR(SUBTOTAL(101,Table7[Score]),\"\")","v":""}]
[]
[null,"Additional narrative to support average score:"]

{"sheet":"Statements","index":14,"n_rows":205,"n_cols":11,"rows_kept":205,"cut":false,"hidden":false,"merged":[]}
[]
[null,"Workbook","WorkSheet","Address","Bold","Size","Level","Sector","SubSector","Building Block","Statement"]
[null,"Copy of National and district building block scoring - hygiene v5.xlsx","Hygiene National +FD","$G$21",true,10,"District","Hygiene",null,"Finance","There is an earmarked budget for hygiene promotion with special financing measures used for reaching the poorest."]
[null,"Copy of National and district building block scoring - hygiene v5.xlsx","Hygiene National +FD","$I$5",true,10,"National","Hygiene",null,"Finance","There are financing mechanisms in place to systematically promote hygiene (handwashing, disposal of faecal matter, reaching the poorest)."]
[null,"Copy of National and district building block scoring - sanitation v4.xlsx","Fin_S-SN","$E$3",true,10,"National","Sanitation",null,"Finance","Funding mechanisms and flows can be identified for the cost components of capital expenditure, capital maintenance, direct support and indirect support. There are no redundancies."]
[null,"Copy of National and district building block scoring - sanitation v4.xlsx","Fin_S-SN","$G$3",true,10,"National","Sanitation",null,"Finance","All the cost components are covered/taken into account in the sector budget. There are no budget gaps."]
[null,"Copy of National and district building block scoring - sanitation v4.xlsx","Fin_S-SN","$I$3",true,10,"National","Sanitation",null,"Finance","There are subsidies/subsidy mechanisms to address equity; cross subsidy and targeted subsidy for latrines."]
[null,"Copy of National and district building block scoring - sanitation v4.xlsx","Fin_S-SN","$K$3",true,10,"National","Sanitation",null,"Finance","It is defined who is responsible for paying capital expenditure and capital maintenance."]
[null,"Copy of National and district building block scoring - sanitation v4.xlsx","Fin_S-SN","$M$3",true,10,"National","Sanitation",null,"Finance","Sector budgets and expenditures are justified in parliament with sector performance data."]
[null,"Copy of National and district building block scoring - sanitation v4.xlsx","Fin_S-D","$E$3",true,10,"District","Sanitation",null,"Finance","The nationally defined mechanisms for financing capital expenditure are in place."]
[null,"Copy of National and district building block scoring - sanitation v4.xlsx","Fin_S-D","$G$3",true,10,"District","Sanitation",null,"Finance","There is sufficient absorption capacity for and a manageable gap between budget and disbursements to follow planning of service development."]
[null,"Copy of National and district building block scoring - sanitation v4.xlsx","Fin_S-D","$I$3",true,10,"District","Sanitation",null,"Finance","The nationally defined mechanisms for capital maintenaince expenditure and direct support are applied."]
[null,"Copy of National and district building block scoring - sanitation v4.xlsx","Fin_S-D","$K$3",true,10,"District","Sanitation",null,"Finance","The nationally defined subsidy mechanisms (pro-poor, cross subsidies, sewer/on-site or other) are applied."]
[null,"Copy of National and district building block scoring - sanitation v4.xlsx","Fin_S-D","$M$3",true,10,"District","Sanitation",null,"Finance","There are measures to prioritise WASH in local level planning (earmarked budget)."]
[null,"Copy of National and district building block scoring - WASH away from home v5.xlsx","Hygiene National +FD","$G$21",true,10,"District","WASH away from home","School","Finance","There is an earmarked budget for school WASH with special measures for reaching disadvantaged groups."]
[null,"Copy of National and district building block scoring - WASH away from home v5.xlsx","Hygiene National +FD","$G$53",true,10,"District","WASH away from home","Health care facility","Finance","There is an earmarked budget for WASH at health facilities."]
[null,"Copy of National and district building block scoring - WASH away from home v5.xlsx","Hygiene National +FD","$I$5",true,10,"National","WASH away from home","School","Finance","There are financing mechanisms in place to systematically strengthen school WASH (soft- and hardware)."]
[null,"Copy of National and district building block scoring - WASH away from home v5.xlsx","Hygiene National +FD","$I$37",true,10,"National","WASH away from home","Health care facility","Finance","There are financing mechanisms in place to systematically strengthen WASH at health facilities (soft- and hardware)."]
[null,"Copy of National and district building block scoring - water v4.xlsx","Fin_W-SN","$E$3",true,10,"National","Water",null,"Finance","Funding mechanisms and flows can be identified for the cost components: capital expenditure, capital maintenaince, direct support and indirect support. There are no redundancies."]
[null,"Copy of National and district building block scoring - water v4.xlsx","Fin_W-SN","$G$3",true,10,"National","Water",null,"Finance","All the cost components are covered/taken into account in the sector budget. No budget gaps exist."]
[null,"Copy of National and district building block scoring - water v4.xlsx","Fin_W-SN","$I$3",true,10,"National","Water",null,"Finance","There are subsidies/subsidy mechanisms to address equity (cross subsidy and targeted subsidy for latrines)."]
[null,"Copy of National and district building block scoring - water v4.xlsx","Fin_W-SN","$K$3",true,10,"National","Water",null,"Finance","It is defined who is responsible for paying capital expenditure and capital maintenaince expenditure."]
[null,"Copy of National and district building block scoring - water v4.xlsx","Fin_W-SN","$M$3",true,10,"National","Water",null,"Finance","Sector budgets and expenditures are justified in parliament with sector performance data."]
[null,"Copy of National and district building block scoring - water v4.xlsx","Fin_W-D","$E$3",true,10,"District","Water",null,"Finance","The nationally defined mechanisms for financing capital expenditure are in place."]
[null,"Copy of National and district building block scoring - water v4.xlsx","Fin_W-D","$G$3",true,10,"District","Water",null,"Finance","There is sufficient absorption capacity for and a manageable gap between budget and disbursements to follow planning of service development."]
[null,"Copy of National and district building block scoring - water v4.xlsx","Fin_W-D","$I$3",true,10,"District","Water",null,"Finance","The nationally defined mechanisms for capital maintenaince expenditure and direct support are being applied."]
[null,"Copy of National and district building block scoring - water v4.xlsx","Fin_W-D","$K$3",true,10,"District","Water",null,"Finance","The nationally defined subsidy mechanisms (block tariffs, cross subsidies between providers or other) are applied."]
[null,"Copy of National and district building block scoring - water v4.xlsx","Fin_W-D","$M$3",true,10,"District","Water",null,"Finance","There are measures to prioritise WASH in local level planning (earmarked budget)."]
[null,"Copy of National and district building block scoring - sanitation v4.xlsx","Infr_Dev_S_SN","$E$3",true,10,"National","Sanitation",null,"Infrastructure (development)","The project delivery models and procurement procedures for capital expenditure projects (subsidies for onsite sanitation infrastructure, public latrines, treatment facilities, sewers) are clearly articulated in government-sanctioned implementation manuals."]
[null,"Copy of National and district building block scoring - sanitation v4.xlsx","Infr_Dev_S_SN","$G$3",true,10,"National","Sanitation",null,"Infrastructure (development)","The project delivery models and procedures are sufficiently differentiated for different segments of the population and articulated with the service delivery models."]
[null,"Copy of National and district building block scoring - sanitation v4.xlsx","Infr_Dev_S_SN","$I$3",true,10,"National","Sanitation",null,"Infrastructure (development)","There are mechanisms and capacity in place to ensure due diligence, regulation and control over procurement."]
[null,"Copy of National and district building block scoring - sanitation v4.xlsx","Infr_Dev_S_SN","$K$3",true,10,"National","Sanitation",null,"Infrastructure (development)","The project delivery models ensure good quality of works and of the institutional development process."]
[null,"Copy of National and district building block scoring - sanitation v4.xlsx","Infr_Dev_S_SN","$M$3",true,10,"National","Sanitation",null,"Infrastructure (development)","The manuals for project delivery are followed by the different national-level stakeholders."]
[null,"Copy of National and district building block scoring - sanitation v4.xlsx","Infr_Dev_S-D","$E$3",true,10,"District","Sanitation",null,"Infrastructure (development)","The project delivery models, procurement and implementation manuals, and procedures for capital investments projects (including public latrines) are followed."]
[null,"Copy of National and district building block scoring - sanitation v4.xlsx","Infr_Dev_S-D","$G$3",true,10,"District","Sanitation",null,"Infrastructure (development)","The mechanisms for carrying out due diligence, regulation and procurement are in place."]
[null,"Copy of National and district building block scoring - sanitation v4.xlsx","Infr_Dev_S-D","$I$3",true,10,"District","Sanitation",null,"Infrastructure (development)","Sufficient capacity for carrying out due diligence, regulation, and following procurement and implementation manuals, is in place."]
[null,"Copy of National and district building block scoring - water v4.xlsx","Infr_Dev_W-SN","$E$3",true,10,"National","Water",null,"Infrastructure (development)","The project delivery models and procurement procedures for capital investment projects (drinking water infrastructure) are clearly articulated in government-sanctioned implementation manuals."]
[null,"Copy of National and district building block scoring - water v4.xlsx","Infr_Dev_W-SN","$G$3",true,10,"National","Water",null,"Infrastructure (development)","The project delivery models and procedures are sufficiently differentiated for different segments of the population and articulated with the service delivery models."]
[null,"Copy of National and district building block scoring - water v4.xlsx","Infr_Dev_W-SN","$I$3",true,10,"National","Water",null,"Infrastructure (development)","There are mechanisms and capacity in place to ensure due diligence, regulation and control over procurement."]
[null,"Copy of National and district building block scoring - water v4.xlsx","Infr_Dev_W-SN","$K$3",true,10,"National","Water",null,"Infrastructure (development)","The project delivery models ensure good quality of works and of the institutional development process."]
[null,"Copy of National and district building block scoring - water v4.xlsx","Infr_Dev_W-SN","$M$3",true,10,"National","Water",null,"Infrastructure (development)","The manuals for project delivery are followed by the different national-level stakeholders."]
[null,"Copy of National and district building block scoring - water v4.xlsx","Infr_Dev_W-D","$E$3",true,10,"District","Water",null,"Infrastructure (development)","The project delivery models and procurement and implementation manuals and procedures for capital investments projects (drinking water infrastructure) are followed."]
[null,"Copy of National and district building block scoring - water v4.xlsx","Infr_Dev_W-D","$G$3",true,10,"District","Water",null,"Infrastructure (development)","The mechanisms for carrying out due diligence, regulation and procurement are in place."]
[null,"Copy of National and district building block scoring - water v4.xlsx","Infr_Dev_W-D","$I$3",true,10,"District","Water",null,"Infrastructure (development)","Sufficient capacity for carrying out due diligence and regulation and following procurement and implementation manuals is in place."]
[null,"Copy of National and district building block scoring - sanitation v4.xlsx","Infr_Man__S-SN","$E$3",true,10,"National","Sanitation",null,"Infrastructure (management)","Asset ownership is clearly defined in laws and regulation."]
[null,"Copy of National and district building block scoring - sanitation v4.xlsx","Infr_Man__S-SN","$G$3",true,10,"National","Sanitation",null,"Infrastructure (management)","An inventory exists of all (or most) infrastructure assets (including public latrines), including age and current physical state of assets."]
[null,"Copy of National and district building block scoring - sanitation v4.xlsx","Infr_Man__S-SN","$I$3",true,10,"National","Sanitation",null,"Infrastructure (management)","The roles and responsibilities for asset management are clearly defined and separated between service providers and authorities, including differentiation between minor and major maintenance (not including households)."]
[null,"Copy of National and district building block scoring - sanitation v4.xlsx","Infr_Man__S-SN","$K$3",true,10,"National","Sanitation",null,"Infrastructure (management)","Asset management is operationalised through standard tools, guidelines and trainings."]
[null,"Copy of National and district building block scoring - sanitation v4.xlsx","Infr_Man_S-D","$E$3",true,10,"District","Sanitation",null,"Infrastructure (management)","Asset ownership is defined in detail between service authority and service provider(s) following the national legal framework."]
[null,"Copy of National and district building block scoring - sanitation v4.xlsx","Infr_Man_S-D","$G$3",true,10,"District","Sanitation",null,"Infrastructure (management)","An inventory exists of all (or most) sanitation infrastructure assets, including age and current physical state of assets for the focus district."]
[null,"Copy of National and district building block scoring - sanitation v4.xlsx","Infr_Man_S-D","$I$3",true,10,"District","Sanitation",null,"Infrastructure (management)","The service authority is fulfilling its role with respect to asset management."]
[null,"Copy of National and district building block scoring - sanitation v4.xlsx","Infr_Man_S-D","$K$3",true,10,"District","Sanitation",null,"Infrastructure (management)","The service authorities provide support to service providers to do operation and maintenaince."]
[null,"Copy of National and district building block scoring - water v4.xlsx","Infr_Man_W-SN","$E$3",true,10,"National","Water",null,"Infrastructure (management)","Asset ownership is clearly defined in laws and regulation."]
[null,"Copy of National and district building block scoring - water v4.xlsx","Infr_Man_W-SN","$G$3",true,10,"National","Water",null,"Infrastructure (management)","An inventory exists of all (or most) infrastructure assets, including age and current physical state of assets."]
[null,"Copy of National and district building block scoring - water v4.xlsx","Infr_Man_W-SN","$I$3",true,10,"National","Water",null,"Infrastructure (management)","The roles and responsibilities for asset management are clearly defined and separated between service providers and authorities, including differentiation between minor and major maintenance."]
[null,"Copy of National and district building block scoring - water v4.xlsx","Infr_Man_W-SN","$K$3",true,10,"National","Water",null,"Infrastructure (management)","Asset management is operationalised through standard tools, guidelines and trainings."]
[null,"Copy of National and district building block scoring - water v4.xlsx","Infr_Man_W-D","$E$3",true,10,"District","Water",null,"Infrastructure (management)","Asset ownership is defined in detail between service authority and service provider(s) following the national legal framework."]
[null,"Copy of National and district building block scoring - water v4.xlsx","Infr_Man_W-D","$G$3",true,10,"District","Water",null,"Infrastructure (management)","An inventory exists of all (or most) water infrastructure assets, including age and current physical state of assets for the focus district."]
[null,"Copy of National and district building block scoring - water v4.xlsx","Infr_Man_W-D","$I$3",true,10,"District","Water",null,"Infrastructure (management)","The service authority is fulfilling its role with respect to asset management."]
[null,"Copy of National and district building block scoring - water v4.xlsx","Infr_Man_W-D","$K$3",true,10,"District","Water",null,"Infrastructure (management)","The service authorities provide support to service providers to do operation and maintenaince."]
[null,"Copy of National and district building block scoring - sanitation v4.xlsx","Inst_S-SN","$E$3",true,10,"National","Sanitation",null,"Institutions","Responsibilities of the national and decentralised level bodies are clearly defined, and there are no gaps or overlaps between them."]
[null,"Copy of National and district building block scoring - sanitation v4.xlsx","Inst_S-SN","$G$3",true,10,"National","Sanitation",null,"Institutions","Staffing requirements at national level (ministries, departments except the service authority) and decentralised bodies are clearly defined and the positions at national level are filled."]
[null,"Copy of National and district building block scoring - sanitation v4.xlsx","Inst_S-SN","$I$3",true,10,"National","Sanitation",null,"Institutions","The responsibilities and institutional set-up for service authorities for the different Service Delivery Models are clearly defined and understood."]
[null,"Copy of National and district building block scoring - sanitation v4.xlsx","Inst_S-SN","$K$3",true,10,"National","Sanitation",null,"Institutions","Staffing requirements for the service authorities for the different Service Delivery Models are clearly defined in terms of number of fulltime-equivalent (FTE), or specific job profiles."]
[null,"Copy of National and district building block scoring - sanitation v4.xlsx","Inst_S-D","$E$3",true,10,"District","Sanitation",null,"Institutions","The required institutional set-up for the different Service Delivery Models (in particular for the service authority and service provider roles) does exist and is in place."]
[null,"Copy of National and district building block scoring - sanitation v4.xlsx","Inst_S-D","$G$3",true,10,"District","Sanitation",null,"Institutions","All the required staff positions of the service authority are filled. "]
[null,"Copy of National and district building block scoring - sanitation v4.xlsx","Inst_S-D","$I$3",true,10,"District","Sanitation",null,"Institutions","The service authority receives regular back-up or support from higher levels of government."]
[null,"Copy of National and district building block scoring - sanitation v4.xlsx","Inst_S-D","$K$3",true,10,"District","Sanitation",null,"Institutions","Service authorities and service providers have a formalised relationship for addressing accountability (contract, performance agreement, authorization)."]
[null,"Copy of National and district building block scoring - hygiene v5.xlsx","Hygiene National +FD","$E$5",true,10,"National","Hygiene",null,"Institutions","Responsibilities of the national and decentralised level bodies are clearly defined, and there are no gaps or overlaps between them."]
[null,"Copy of National and district building block scoring - hygiene v5.xlsx","Hygiene National +FD","$E$21",true,10,"District","Hygiene",null,"Institutions","All the required staff positions of the service authority/provider at the district are filled. "]
[null,"Copy of National and district building block scoring - hygiene v5.xlsx","Hygiene National +FD","$E$37",false,12,"Key","Hygiene",null,"Institutions","Hygiene is assessed for both national and district level using one statement for each building block. The scores for each building block are done by giving numbers between 1 and 5, where 1 stands for non-existant/very weak and 5 fully compliant/very strong. In case a scoring statement does not apply to the (local) context the score is N/A (not applicable). A score of N/A will not be taken into account for the average score of the building block. The scores are only meaningful when accompanied with a narrative that explains the score. The average score of all the building blocks requires its own narrative."]
[null,"Copy of National and district building block scoring - WASH away from home v5.xlsx","Hygiene National +FD","$E$5",true,10,"National","WASH away from home","School","Institutions","Responsibilities of the national and decentralised level bodies are clearly defined, and there are no gaps or overlaps between them."]
[null,"Copy of National and district building block scoring - WASH away from home v5.xlsx","Hygiene National +FD","$E$21",true,10,"District","WASH away from home","School","Institutions","All the required staff positions of the service authority/provider at the district are filled. "]
[null,"Copy of National and district building block scoring - WASH away from home v5.xlsx","Hygiene National +FD","$E$37",true,10,"National","WASH away from home","Health care facility","Institutions","Responsibilities of the national and decentralised level bodies are clearly defined, and there are no gaps or overlaps between them."]
[null,"Copy of National and district building block scoring - WASH away from home v5.xlsx","Hygiene National +FD","$E$53",true,10,"District","WASH away from home","Health care facility","Institutions","All the required staff positions of the service authority/provider at the district are filled. "]
[null,"Copy of National and district building block scoring - WASH away from home v5.xlsx","Hygiene National +FD","$E$69",false,12,"Key","WASH away from home","Health care facility","Institutions","Extra Household Settings is assessed separately for School WASH and Health Facilities and for both national and district level using one statement for each building block. The scores for each building block are done with integer numbers between 1 and 5, where 1 stands for non-existant/very weak and 5 fully compliant/very strong. In case a scoring statement doesn't apply to the (local) context the score is N/A (not applicable), which will not be taken into account for the average score of the building block. The scores are only meaningful when accompanied with a narrative that explains the score. The average score of all the building blocks requires its own narrative that will use the individual assesments of the building blocks."]
[null,"Copy of National and district building block scoring - water v4.xlsx","Inst_W-SN","$E$3",true,10,"National","Water",null,"Institutions","Responsibilities of the national and decentralised level bodies are clearly defined, and there are no gaps or overlaps between them."]
[null,"Copy of National and district building block scoring - water v4.xlsx","Inst_W-SN","$G$3",true,10,"National","Water",null,"Institutions","Staffing requirements at national level (ministries, departments except the service authority) and decentralised bodies are clearly defined and the positions at national level are filled."]
[null,"Copy of National and district building block scoring - water v4.xlsx","Inst_W-SN","$I$3",true,10,"National","Water",null,"Institutions","The responsibilities and institutional set-up for service authorities for the different Service Delivery Models are clearly defined and understood."]
[null,"Copy of National and district building block scoring - water v4.xlsx","Inst_W-SN","$K$3",true,10,"National","Water",null,"Institutions","Staffing requirements for the service authorities for the different Service Delivery Models are clearly defined in terms of number of fulltime-equivalent (FTE), or specific job profiles."]
[null,"Copy of National and district building block scoring - water v4.xlsx","Inst_W-D","$E$3",true,10,"District","Water",null,"Institutions","The required institutional set-up for the different Service Delivery Models (in particular for the service authority and service provider roles) does exist and is in place."]
[null,"Copy of National and district building block scoring - water v4.xlsx","Inst_W-D","$G$3",true,10,"District","Water",null,"Institutions","All the required staff positions of the service authority are filled. "]
[null,"Copy of National and district building block scoring - water v4.xlsx","Inst_W-D","$I$3",true,10,"District","Water",null,"Institutions","The service authority receives regular back-up or support from higher levels of government."]
[null,"Copy of National and district building block scoring - water v4.xlsx","Inst_W-D","$K$3",true,10,"District","Water",null,"Institutions","Service authorities and service providers have a formalised relationship for addressing accountability (contract, performance agreement and authorization)."]
[null,"Copy of National and district building block scoring - sanitation v4.xlsx","L+A_S-SN","$E$3",true,10,"National","Sanitation",null,"Learning & adaptation","There are institutionalised learning platforms and/or mechanisms at sector level (joint sector reviews, donor platforms, donor-government platforms, national learning alliance, thematic working groups, resource centres, sector web sites)."]
[null,"Copy of National and district building block scoring - sanitation v4.xlsx","L+A_S-SN","$G$3",true,10,"National","Sanitation",null,"Learning & adaptation","The platforms are sufficiently representative of the different sector stakeholders."]
[null,"Copy of National and district building block scoring - sanitation v4.xlsx","L+A_S-SN","$I$3",true,10,"National","Sanitation",null,"Learning & adaptation","The reflections from these platforms are systematically taken up in policies and strategies through \"undertakings\" (targeted actions)."]
[null,"Copy of National and district building block scoring - sanitation v4.xlsx","L+A_S-SN","$K$3",true,10,"National","Sanitation",null,"Learning & adaptation","The national platforms are linked to the decentralised level."]
[null,"Copy of National and district building block scoring - sanitation v4.xlsx","L+A_S-D","$E$3",true,10,"District","Sanitation",null,"Learning & adaptation","There are institutionalised learning platforms at district level; district stakeholder platforms, thematic working groups, resource centres and integrated with coordination platform."]
[null,"Copy of National and district building block scoring - sanitation v4.xlsx","L+A_S-D","$G$3",true,10,"District","Sanitation",null,"Learning & adaptation","The learning platforms are sufficiently representative of the different sector stakeholders."]
[null,"Copy of National and district building block scoring - sanitation v4.xlsx","L+A_S-D","$I$3",true,10,"District","Sanitation",null,"Learning & adaptation","The deliberations of the learning platforms are regularly documented and made available for interested stakeholders."]
[null,"Copy of National and district building block scoring - sanitation v4.xlsx","L+A_S-D","$K$3",true,10,"District","Sanitation",null,"Learning & adaptation","The reflections from these platforms are taken up in local policies, strategies through ‘undertakings’ (targeted actions)."]
[null,"Copy of National and district building block scoring - sanitation v4.xlsx","L+A_S-D","$M$3",true,10,"District","Sanitation",null,"Learning & adaptation","These district learning mechanisms are linked to the national level."]
[null,"Copy of National and district building block scoring - hygiene v5.xlsx","Hygiene National +FD","$O$5",true,10,"National","Hygiene",null,"Learning & adaptation","Hygiene learning is integrated with water and sanitation and health sector institutionalised learning platforms and/or mechanisms (joint sector reviews, donor platforms, donor-government platforms, national learning alliance, thematic working groups, resource centres and sector web sites)."]
[null,"Copy of National and district building block scoring - hygiene v5.xlsx","Hygiene National +FD","$M$21",true,10,"District","Hygiene",null,"Learning & adaptation","Hygiene learning is integrated with water and sanitation and health sectors institutionalised learning platforms at district level (district stakeholder platform, thematic working groups, resource centres)."]
[null,"Copy of National and district building block scoring - WASH away from home v5.xlsx","Hygiene National +FD","$O$5",true,10,"National","WASH away from home","School","Learning & adaptation","School WASH learning is integrated with water and sanitation and health sector institutionalised learning platforms and/or mechanisms (joint sector reviews, donor platforms, donor-government platforms, national learning alliance, thematic working groups, resource centres and sector web sites)."]
[null,"Copy of National and district building block scoring - WASH away from home v5.xlsx","Hygiene National +FD","$M$21",true,10,"District","WASH away from home","School","Learning & adaptation","School WASH learning is integrated with water and sanitation and health sectors institutionalised learning platforms at district level (district stakeholder platform, thematic working groups and resource centres)."]
[null,"Copy of National and district building block scoring - WASH away from home v5.xlsx","Hygiene National +FD","$O$37",true,10,"National","WASH away from home","Health care facility","Learning & adaptation","WASH at health facilities learning is integrated with water and sanitation and health sector institutionalised learning platforms and/or mechanisms (joint sector reviews, donor platforms, donor-government platforms, national learning alliance, thematic working groups, resource centres and sector web sites)."]
[null,"Copy of National and district building block scoring - WASH away from home v5.xlsx","Hygiene National +FD","$M$53",true,10,"District","WASH away from home","Health care facility","Learning & adaptation","WASH at health facilities learning is integrated with water and sanitation and health sectors institutionalised learning platforms at district level (district stakeholder platform, thematic working groups and resource centres)."]
[null,"Copy of National and district building block scoring - water v4.xlsx","L+A_W-SN","$E$3",true,10,"National","Water",null,"Learning & adaptation","There are institutionalised learning platforms and/or mechanisms at sector level (joint sector reviews, donor platforms, donor-government platforms, national learning alliance, thematic working groups, resource centres and sector web sites)."]
[null,"Copy of National and district building block scoring - water v4.xlsx","L+A_W-SN","$G$3",true,10,"National","Water",null,"Learning & adaptation","The platforms are sufficiently representative of the different sector stakeholders."]
[null,"Copy of National and district building block scoring - water v4.xlsx","L+A_W-SN","$I$3",true,10,"National","Water",null,"Learning & adaptation","The reflections from these platforms are systematically taken up in policies, strategies through ‘undertakings' (targeted actions)."]
[null,"Copy of National and district building block scoring - water v4.xlsx","L+A_W-SN","$K$3",true,10,"National","Water",null,"Learning & adaptation","The national platforms are linked to the decentralised level."]
[null,"Copy of National and district building block scoring - water v4.xlsx","L+A_W-D","$E$3",true,10,"District","Water",null,"Learning & adaptation","There are institutionalised learning platforms at district level (district stakeholder platform, thematic working groups, resource centres and integrated with coordination platform)."]
[null,"Copy of National and district building block scoring - water v4.xlsx","L+A_W-D","$G$3",true,10,"District","Water",null,"Learning & adaptation","The learning platforms are sufficiently representative of the different sector stakeholders."]
[null,"Copy of National and district building block scoring - water v4.xlsx","L+A_W-D","$I$3",true,10,"District","Water",null,"Learning & adaptation","The deliberations of the learning platforms are regularly documented and made available for interested stakeholders."]
[null,"Copy of National and district building block scoring - water v4.xlsx","L+A_W-D","$K$3",true,10,"District","Water",null,"Learning & adaptation","The reflections from these platforms are taken up in local policies, strategies through ‘undertakings’ (targeted actions)."]
[null,"Copy of National and district building block scoring - water v4.xlsx","L+A_W-D","$M$3",true,10,"District","Water",null,"Learning & adaptation","These district learning mechanisms are linked to the national level."]
[null,"Copy of National and district building block scoring - sanitation v4.xlsx","Mon_S-SN","$E$2",true,10,"National","Sanitation",null,"Monitoring","There is a national monitoring framework. The different sectoral monitoring systems speak to each other, in particular to the National Bureau of Statistics."]
[null,"Copy of National and district building block scoring - sanitation v4.xlsx","Mon_S-SN","$G$2",true,10,"National","Sanitation",null,"Monitoring","The monitoring systems include service delivery indicators (service level, service provider performance, service authority performance) and is covering the whole sanitation supply chain (include faecal sludge management)."]
[null,"Copy of National and district building block scoring - sanitation v4.xlsx","Mon_S-SN","$I$2",true,10,"National","Sanitation",null,"Monitoring","The monitoring systems actively cover the entire country (all districts, all communities, all service providers)."]
[null,"Copy of National and district building block scoring - sanitation v4.xlsx","Mon_S-SN","$K$2",true,10,"National","Sanitation",null,"Monitoring","The data from the monitoring system are analysed and used at sector level for macro-level planning, trends analysis and policy making."]
[null,"Copy of National and district building block scoring - sanitation v4.xlsx","Mon_S-SN","$M$2",true,10,"National","Sanitation",null,"Monitoring","The data in the national monitoring system are regularly updated."]
[null,"Copy of National and district building block scoring - sanitation v4.xlsx","Mon_S-D","$E$3",true,10,"District","Sanitation",null,"Monitoring","The agreed national monitoring system(s) for the specific Service Delivery Models are in use in the district."]
[null,"Copy of National and district building block scoring - sanitation v4.xlsx","Mon_S-D","$G$3",true,10,"District","Sanitation",null,"Monitoring","The total of monitoring systems in use cover the entire district (all communities and all service providers)."]
[null,"Copy of National and district building block scoring - sanitation v4.xlsx","Mon_S-D","$I$3",true,10,"District","Sanitation",null,"Monitoring","Service provider (pit emptying) performance data are available."]
[null,"Copy of National and district building block scoring - sanitation v4.xlsx","Mon_S-D","$K$3",true,10,"District","Sanitation",null,"Monitoring","The data in the monitoring system used at district level are regularly updated."]
[null,"Copy of National and district building block scoring - hygiene v5.xlsx","Hygiene National +FD","$M$5",true,10,"National","Hygiene",null,"Monitoring","There is a national monitoring framework (the different sectoral monitoring systems speak to each other, in particular to National Bureau of Statistics)."]
[null,"Copy of National and district building block scoring - hygiene v5.xlsx","Hygiene National +FD","$K$21",true,10,"District","Hygiene",null,"Monitoring","The monitoring system is linked to the national hygiene monitoring and covers the entire district (all communities, hamlets and urban areas)."]
[null,"Copy of National and district building block scoring - WASH away from home v5.xlsx","Hygiene National +FD","$M$5",true,10,"National","WASH away from home","School","Monitoring","There is a national monitoring framework. The different sectoral monitoring systems speak to each other, in particular to the National Bureau of Statistics."]
[null,"Copy of National and district building block scoring - WASH away from home v5.xlsx","Hygiene National +FD","$K$21",true,10,"District","WASH away from home","School","Monitoring","The monitoring system is linked to the national water and sanitation/health monitoring and covers the entire district (all communities, hamlets and urban areas) for both primary and secondary schools."]
[null,"Copy of National and district building block scoring - WASH away from home v5.xlsx","Hygiene National +FD","$M$37",true,10,"National","WASH away from home","Health care facility","Monitoring","There is a national monitoring framework (the different sectoral monitoring systems speak to each other, in particular to National Bureau of Statistics)."]
[null,"Copy of National and district building block scoring - WASH away from home v5.xlsx","Hygiene National +FD","$K$53",true,10,"District","WASH away from home","Health care facility","Monitoring","The monitoring system is linked to the national water and sanitation/health monitoring and covers the entire district (all communities, hamlets, urban)."]
[null,"Copy of National and district building block scoring - water v4.xlsx","Mon_W-SN","$E$2",true,10,"National","Water",null,"Monitoring","There is a national monitoring framework (the different sectoral monitoring systems speak to each other, in particular to the National Bureau of Statistics)."]
[null,"Copy of National and district building block scoring - water v4.xlsx","Mon_W-SN","$G$2",true,10,"National","Water",null,"Monitoring","The monitoring systems include service delivery indicators (Service level, Service provider performance, Service authority performance)."]
[null,"Copy of National and district building block scoring - water v4.xlsx","Mon_W-SN","$I$2",true,10,"National","Water",null,"Monitoring","The monitoring systems actively cover the entire country (all districts, all communities, all service providers)."]
[null,"Copy of National and district building block scoring - water v4.xlsx","Mon_W-SN","$K$2",true,10,"National","Water",null,"Monitoring","The data from the monitoring system are analysed and used at sector level for macro-level planning, trends analysis and policy making."]
[null,"Copy of National and district building block scoring - water v4.xlsx","Mon_W-SN","$M$2",true,10,"National","Water",null,"Monitoring","The data in the national monitoring system are regularly updated."]
[null,"Copy of National and district building block scoring - water v4.xlsx","Mon_W-D","$E$3",true,10,"District","Water",null,"Monitoring","The agreed national monitoring system(s) for the specific Service Delivery Models are in use in the district."]
[null,"Copy of National and district building block scoring - water v4.xlsx","Mon_W-D","$G$3",true,10,"District","Water",null,"Monitoring","The total of monitoring systems in use cover the entire district (all communities, all service providers)."]
[null,"Copy of National and district building block scoring - water v4.xlsx","Mon_W-D","$I$3",true,10,"District","Water",null,"Monitoring","Service provider performance data are available"]
[null,"Copy of National and district building block scoring - water v4.xlsx","Mon_W-D","$K$3",true,10,"District","Water",null,"Monitoring","The data in the monitoring system used at district level are regularly updated."]
[null,"Copy of National and district building block scoring - sanitation v4.xlsx","Plan_S-SN","$E$3",true,10,"National","Sanitation",null,"Planning","National planning mechanisms exist and they are based on a vision for reaching the WASH targets."]
[null,"Copy of National and district building block scoring - sanitation v4.xlsx","Plan_S-SN","$G$3",true,10,"National","Sanitation",null,"Planning","Planning and budgeting is coordinated with donors."]
[null,"Copy of National and district building block scoring - sanitation v4.xlsx","Plan_S-SN","$I$3",true,10,"National","Sanitation",null,"Planning","The national plans take into account both capital investment needs and the needs to ensure sustainable service delivery direct support and capital maintenance."]
[null,"Copy of National and district building block scoring - sanitation v4.xlsx","Plan_S-SN","$K$3",true,10,"National","Sanitation",null,"Planning","The national plans take into account in-country differences (in terms of geography, demography and water resources), recognising the different Service Delivery Models."]
[null,"Copy of National and district building block scoring - sanitation v4.xlsx","Plan_S-SN","$M$3",true,10,"National","Sanitation",null,"Planning","The national plan reflects and takes into consideration the planning done at decentralised level and vice versa."]
[null,"Copy of National and district building block scoring - sanitation v4.xlsx","Plan_S-D","$E$3",true,10,"District","Sanitation",null,"Planning","There are district level WASH targets that link to national targets (multi-annual)."]
[null,"Copy of National and district building block scoring - sanitation v4.xlsx","Plan_S-D","$G$3",true,10,"District","Sanitation",null,"Planning","These plans take into account equity (access) issues."]
[null,"Copy of National and district building block scoring - sanitation v4.xlsx","Plan_S-D","$I$3",true,10,"District","Sanitation",null,"Planning","These plans take into account both capital investment needs and needs to ensure sustainable service delivery (direct support and capital maintenance)."]
[null,"Copy of National and district building block scoring - sanitation v4.xlsx","Plan_S-D","$K$3",true,10,"District","Sanitation",null,"Planning","These plans are costed with reasonable indication of source of financing."]
[null,"Copy of National and district building block scoring - sanitation v4.xlsx","Plan_S-D","$M$3",true,10,"District","Sanitation",null,"Planning","A consultation process with key stakeholders for making the plan is in place."]
[null,"Copy of National and district building block scoring - hygiene v5.xlsx","Hygiene National +FD","$K$5",true,10,"National","Hygiene",null,"Planning","National planning and coordination (aifd effectiveness) mechanism exists and is aligned with the sanitation sector while based on a vision for reaching the national WASH targets."]
[null,"Copy of National and district building block scoring - hygiene v5.xlsx","Hygiene National +FD","$I$21",true,10,"District","Hygiene",null,"Planning","There are district level sanitation and hygiene targets that link to national targets (multi-annual)."]
[null,"Copy of National and district building block scoring - WASH away from home v5.xlsx","Hygiene National +FD","$K$5",true,10,"National","WASH away from home","School","Planning","National planning and coordination (aid effectiveness) mechanism exists and is aligned with the water and sanitation and health sectors while based on a vision for reaching the national WASH targets."]
[null,"Copy of National and district building block scoring - WASH away from home v5.xlsx","Hygiene National +FD","$I$21",true,10,"District","WASH away from home","School","Planning","There are district level school WASH targets that link to national targets (multi-annual)."]
[null,"Copy of National and district building block scoring - WASH away from home v5.xlsx","Hygiene National +FD","$K$37",true,10,"National","WASH away from home","Health care facility","Planning","National planning and coordination (aid effectiveness) mechanism exists and is aligned with the water and sanitation and health sectors while based on a vision for reaching the national WASH targets."]
[null,"Copy of National and district building block scoring - WASH away from home v5.xlsx","Hygiene National +FD","$I$53",true,10,"District","WASH away from home","Health care facility","Planning","There are district level WASH at health facilities targets that link to national targets (multi-annual)."]
[null,"Copy of National and district building block scoring - water v4.xlsx","Plan_W-SN","$E$3",true,10,"National","Water",null,"Planning","National planning mechanisms exist and they are based on a vision for reaching the WASH targets."]
[null,"Copy of National and district building block scoring - water v4.xlsx","Plan_W-SN","$G$3",true,10,"National","Water",null,"Planning","Planning and budgeting are coordinated with donors (aid effectiveness)."]
[null,"Copy of National and district building block scoring - water v4.xlsx","Plan_W-SN","$I$3",true,10,"National","Water",null,"Planning","The national plans take into account both capital expenditure needs and the needs to ensure sustainable service delivery (direct support and capital maintenance expenditure)."]
[null,"Copy of National and district building block scoring - water v4.xlsx","Plan_W-SN","$K$3",true,10,"National","Water",null,"Planning","The national plans take into account in-country differences (geography, demography, water resources) recognising the different Service Delivery Models."]
[null,"Copy of National and district building block scoring - water v4.xlsx","Plan_W-SN","$M$3",true,10,"National","Water",null,"Planning","The national plan reflects and takes into consideration the planning done at decentralised level and vice versa."]
[null,"Copy of National and district building block scoring - water v4.xlsx","Plan_W-D","$E$3",true,10,"District","Water",null,"Planning","There are district level WASH targets that link to national targets (multi-annual)."]
[null,"Copy of National and district building block scoring - water v4.xlsx","Plan_W-D","$G$3",true,10,"District","Water",null,"Planning","These plans take into account equity (access) issues."]
[null,"Copy of National and district building block scoring - water v4.xlsx","Plan_W-D","$I$3",true,10,"District","Water",null,"Planning","These plans take into account both capital investment needs and needs to ensure sustainable service delivery (direct support and capital maintenance)."]
[null,"Copy of National and district building block scoring - water v4.xlsx","Plan_W-D","$K$3",true,10,"District","Water",null,"Planning","These plans are costed with reasonable indication of source of financing."]
[null,"Copy of National and district building block scoring - water v4.xlsx","Plan_W-D","$M$3",true,10,"District","Water",null,"Planning","A consultation process with key stakeholders for making the plan is in place."]
[null,"Copy of National and district building block scoring - sanitation v4.xlsx","Leg_S-SN","$E$3",true,10,"National","Sanitation",null,"Policy & legislation","National Sector Policy and Strategy is in place."]
[null,"Copy of National and district building block scoring - sanitation v4.xlsx","Leg_S-SN","$G$3",true,10,"National","Sanitation",null,"Policy & legislation","Legal framework for the sector is in place. "]
[null,"Copy of National and district building block scoring - sanitation v4.xlsx","Leg_S-SN","$I$3",true,10,"National","Sanitation",null,"Policy & legislation","Norms and standards for quality of works and service delivery are in place."]
[null,"Copy of National and district building block scoring - sanitation v4.xlsx","Leg_S-SN","$K$3",true,10,"National","Sanitation",null,"Policy & legislation","National guidelines for development and management of services are in place."]
[null,"Copy of National and district building block scoring - sanitation v4.xlsx","Leg_S-D","$E$3",true,10,"District","Sanitation",null,"Policy & legislation","By-laws and ordinances for service delivery arrangements are in place."]
[null,"Copy of National and district building block scoring - sanitation v4.xlsx","Leg_S-D","$G$3",true,10,"District","Sanitation",null,"Policy & legislation","National sector legislation is known by local stakeholders."]
[null,"Copy of National and district building block scoring - sanitation v4.xlsx","Leg_S-D","$I$3",true,10,"District","Sanitation",null,"Policy & legislation","By-laws for hygiene and environmental protection are in place."]
[null,"Copy of National and district building block scoring - hygiene v5.xlsx","Hygiene National +FD","$G$5",true,10,"National","Hygiene",null,"Policy & legislation","National Sector Policy and Strategy with legal framework is in place."]
[null,"Copy of National and district building block scoring - WASH away from home v5.xlsx","Hygiene National +FD","$G$5",true,10,"National","WASH away from home","School","Policy & legislation","National Sector Policy and strategy with legal framework is in place."]
[null,"Copy of National and district building block scoring - WASH away from home v5.xlsx","Hygiene National +FD","$G$37",true,10,"National","WASH away from home","Health care facility","Policy & legislation","National Sector Policy and Strategy with legal framework is in place."]
[null,"Copy of National and district building block scoring - water v4.xlsx","Leg_W-SN","$E$3",true,10,"National","Water",null,"Policy & legislation","National Sector Policy and Strategy is in place."]
[null,"Copy of National and district building block scoring - water v4.xlsx","Leg_W-SN","$G$3",true,10,"National","Water",null,"Policy & legislation","Legal framework for the sector is in place. "]
[null,"Copy of National and district building block scoring - water v4.xlsx","Leg_W-SN","$I$3",true,10,"National","Water",null,"Policy & legislation","Norms and standards for quality of works and service delivery are in place."]
[null,"Copy of National and district building block scoring - water v4.xlsx","Leg_W-SN","$K$3",true,10,"National","Water",null,"Policy & legislation","National guidelines for development and management of services are in place."]
[null,"Copy of National and district building block scoring - water v4.xlsx","Leg_W-D","$E$3",true,10,"District","Water",null,"Policy & legislation","By-laws and ordinances for service delivery arrangements are in place."]
[null,"Copy of National and district building block scoring - water v4.xlsx","Leg_W-D","$G$3",true,10,"District","Water",null,"Policy & legislation","National sector legislation is known by local stakeholders."]
[null,"Copy of National and district building block scoring - water v4.xlsx","Leg_W-D","$I$3",true,10,"District","Water",null,"Policy & legislation","By-laws for hygiene and environmental protection are in place."]
[null,"Copy of National and district building block scoring - sanitation v4.xlsx","Reg_S-SN","$E$3",true,10,"National","Sanitation",null,"Regulation & accountability","There is a regulator for the services or regulatory functions are delegated to sub-national institutions (through contracts)."]
[null,"Copy of National and district building block scoring - sanitation v4.xlsx","Reg_S-SN","$G$3",true,10,"National","Sanitation",null,"Regulation & accountability","The entity equipped with regulatory functions sets tariffs for sewerage connections and/or emptying fees, rules for private emptying and for private sector players on-site (emptying techniques, transport and disposal)."]
[null,"Copy of National and district building block scoring - sanitation v4.xlsx","Reg_S-SN","$I$3",true,10,"National","Sanitation",null,"Regulation & accountability","The entity equipped with regulatory functions uses data (monitoring data, audits, score cards) to guide performance management, and apply effective enforcement (incentives, penalties) in the three areas of regulation mentioned in the previous statement."]
[null,"Copy of National and district building block scoring - sanitation v4.xlsx","Reg_S-D","$E$3",true,10,"District","Sanitation",null,"Regulation & accountability","The entity equipped with regulatory functions sets (1) tariff regulations and provide tariff calculation guidelines, (2) service level requirements and (3) rules that protect consumers."]
[null,"Copy of National and district building block scoring - sanitation v4.xlsx","Reg_S-D","$G$3",true,10,"District","Sanitation",null,"Regulation & accountability","The entity equipped with regulatory functions uses monitoring data to guide performance management, and apply effective enforcement (incentives, penalties) in the three areas of regulation."]
[null,"Copy of National and district building block scoring - sanitation v4.xlsx","Reg_S-D","$I$3",true,10,"District","Sanitation",null,"Regulation & accountability","Platform(s) for citizens (Civiel Society Organisations) to be informed and to be consulted on service delivery issues are in place."]
[null,"Copy of National and district building block scoring - sanitation v4.xlsx","Reg_S-D","$K$3",true,10,"District","Sanitation",null,"Regulation & accountability","A mechanism for citizens (Civiel Society Organisations) to hold service providers to account is in place."]
[null,"Copy of National and district building block scoring - water v4.xlsx","Reg_W-SN","$E$3",true,10,"National","Water",null,"Regulation & accountability","There is a regulator for the services or regulatory functions are delegated to sub-national institutions (through contracts)."]
[null,"Copy of National and district building block scoring - water v4.xlsx","Reg_W-SN","$G$3",true,10,"National","Water",null,"Regulation & accountability","The entity equipped with regulatory functions sets (1) tariff regulations and provide tariff calculation guidelines, (2) service level requirements and (3) rules that protect consumers."]
[null,"Copy of National and district building block scoring - water v4.xlsx","Reg_W-SN","$I$3",true,10,"National","Water",null,"Regulation & accountability","The entity equipped with regulatory functions uses data (monitoring data, audits and score cards) to guide performance management and apply effective enforcement (incentives and penalties) in the three areas of regulation mentioned in the previous statement."]
[null,"Copy of National and district building block scoring - water v4.xlsx","Reg_W-D","$E$3",true,10,"District","Water",null,"Regulation & accountability","The entity equipped with regulatory functions sets (1) tariff regulations and provides tariff calculation guidelines, (2) service level requirements and (3) rules that protect consumers."]
[null,"Copy of National and district building block scoring - water v4.xlsx","Reg_W-D","$G$3",true,10,"District","Water",null,"Regulation & accountability","The entity equipped with regulatory functions uses monitoring data to guide performance management, and applies effective enforcement (incentives, penalties) in the three areas of regulation."]
[null,"Copy of National and district building block scoring - water v4.xlsx","Reg_W-D","$I$3",true,10,"District","Water",null,"Regulation & accountability","Platform(s) for citizens (Civiel Society Organisations) to be informed and to be consulted on service delivery issues are in place."]
[null,"Copy of National and district building block scoring - water v4.xlsx","Reg_W-D","$K$3",true,10,"District","Water",null,"Regulation & accountability","A mechanism for citizens (Civiel Society Organisations) to hold service providers to account is in place."]
[null,"Copy of National and district building block scoring - sanitation v4.xlsx","WRM_S-SN","$E$3",true,10,"National","Sanitation",null,"Water resource management","There is legislation and/or policy in place that clearly defines priorities and processes related to interference with water bodies and aquifers, regulation and water uses."]
[null,"Copy of National and district building block scoring - sanitation v4.xlsx","WRM_S-SN","$G$3",true,10,"National","Sanitation",null,"Water resource management","There are national and sub-national water resource management institutions in place and able to undertake their mandated functions in the area of sanitation for water resource management  (catchment authorities, river basin authorities)."]
[null,"Copy of National and district building block scoring - sanitation v4.xlsx","WRM_S-SN","$I$3",true,10,"National","Sanitation",null,"Water resource management","There are mechanisms or platforms in place to allow representation of service authorities and/or service providers for WASH services in Water Resource Managment bodies."]
[null,"Copy of National and district building block scoring - sanitation v4.xlsx","WRM_S-D","$E$3",true,10,"District","Sanitation",null,"Water resource management","Service providers/Service authorities in the district plan for and carry out source protection and preservation activities."]
[null,"Copy of National and district building block scoring - sanitation v4.xlsx","WRM_S-D","$G$3",true,10,"District","Sanitation",null,"Water resource management","Service providers and/or the service authority are able to engage with water resource management decision making at catchment or basin level."]
[null,"Copy of National and district building block scoring - sanitation v4.xlsx","WRM_S-D","$I$3",true,10,"District","Sanitation",null,"Water resource management","Service providers and/or authorities develop and expand the sanitation infrastructure, taking into account water resource availability and variability, including vulnerability to extreme events, as well as impact on receiving water bodies."]
[null,"Copy of National and district building block scoring - sanitation v4.xlsx","WRM_S-D","$K$3",true,10,"District","Sanitation",null,"Water resource management","There are mechanisms in place for managing any conflicts or rather synergies between sanitation service users and/ or between users and service providers."]
[null,"Copy of National and district building block scoring - sanitation v4.xlsx","WRM_S-D","$M$3",true,10,"District","Sanitation",null,"Water resource management","Water Resource Management instruments such as abstraction permits, abstraction fees, disposal license are applied."]
[null,"Copy of National and district building block scoring - water v4.xlsx","WRM_W-SN","$E$3",true,10,"National","Water",null,"Water resource management","There is legislation and/or policy in place that clearly defines priorities and processes relating to water resources allocation, regulation and water rights."]
[null,"Copy of National and district building block scoring - water v4.xlsx","WRM_W-SN","$G$3",true,10,"National","Water",null,"Water resource management","There are national and sub-national water resource management institutions in place and able to undertake their mandated functions for water resource management (catchment authorities and river basin authorities)."]
[null,"Copy of National and district building block scoring - water v4.xlsx","WRM_W-SN","$I$3",true,10,"National","Water",null,"Water resource management","There are mechanisms or platforms in place to allow representation of service authorities and/or service providers for WASH services in WRM bodies."]
[null,"Copy of National and district building block scoring - water v4.xlsx","WRM_W-D","$E$3",true,10,"District","Water",null,"Water resource management","Service providers in the district plan for and carry out source protection and preservation activities such as water safety and water security plans."]
[null,"Copy of National and district building block scoring - water v4.xlsx","WRM_W-D","$G$3",true,10,"District","Water",null,"Water resource management","Service providers and/or the service authority are able to engage with water resource management decision making at catchment or basin level."]
[null,"Copy of National and district building block scoring - water v4.xlsx","WRM_W-D","$I$3",true,10,"District","Water",null,"Water resource management","Service providers and/or authorities develop and expand the water supply infrastructure, taking into account water resource availability and variability, including vulnerability to extreme events, as well as impact on receiving water bodies."]
[null,"Copy of National and district building block scoring - water v4.xlsx","WRM_W-D","$K$3",true,10,"District","Water",null,"Water resource management","There are mechanisms in place for managing any conflicts or rather synergies between users of water for drinking and other uses (such as agriculture and livestock) that minimise the effect of the performance of schemes (such as Multiple Use Systems)."]
[null,"Copy of National and district building block scoring - water v4.xlsx","WRM_W-D","$M$3",true,10,"District","Water",null,"Water resource management","Water Resource Management instruments such as abstraction permits, abstraction fees and disposal license are applied."]

{"sheet":"References","index":15,"n_rows":12,"n_cols":14,"rows_kept":12,"cut":false,"hidden":true,"merged":[]}
[]
[null,"Levels",null,"Sectors",null,"Subsectors","Sectors",null,"Building Blocks","Description","Font Colour","Fill Colour",null,"Scores"]
[null,"National",null,"Water",null,null,"Water",null,"Institutions","The organisations, their coordination, roles, interactions and rules that govern them in a country and its WASH sector.","#ffffff","#f8b318",null,1]
[null,"District",null,"Sanitation",null,null,"Sanitation",null,"Policy & legislation","Government's vision and strategy (policy) and legal framework (legislation) for delivering WASH services.","#ffffff","#e62733",null,2]
[null,null,null,"Hygiene",null,null,"Hygiene",null,"Planning","Making plans and securing budgets to execute those plans to deliver WASH services.","#ffffff","#00788a",null,3]
[null,null,null,"WASH away from home",null,"School","WASH away from home",null,"Finance","All of the costs and how to meet them, to provide sustainable services.","#ffffff","#00a7c7",null,4]
[null,null,null,null,null,"Health care facility","WASH away from home",null,"Regulation & accountability","Effectively holding decision makers, service providers and service users to account.","#00788a","#cae1e8",null,5]
[null,null,null,null,null,null,null,null,"Monitoring","Collecting and using data to ensure the quality and sustainability of WASH services. Getting actionable information into the hands of those responsible for planning and decision making.","#00788a","#ccdb29",null,"N/A"]
[null,null,null,null,null,null,null,null,"Infrastructure (development)","Building, maintaining and operating the essential physical structures that deliver WASH services.","#00788a","#efe416"]
[null,null,null,null,null,null,null,null,"Infrastructure (management)","Building, maintaining and operating the essential physical structures that deliver WASH services.","#00788a","#efe416"]
[null,null,null,null,null,null,null,null,"Water resource management","The efficient (re)use and allocation of water sources to minimise conflicts and maximise collective gains.","#ffffff","#00744a"]
[null,null,null,null,null,null,null,null,"Learning & adaptation","The ability to adapt in the face of change–building a resilient WASH sector.  ","#00788a","#fcded5"]

{"sheet":"Icons","index":16,"n_rows":0,"n_cols":0,"rows_kept":0,"cut":false,"hidden":true,"merged":[]}

{"sheet":"Graphics","index":17,"n_rows":21,"n_cols":18,"rows_kept":21,"cut":false,"hidden":true,"merged":[]}
[]
[]
[]
[]
[]
[]
[]
[]
[]
[]
[]
[]
[]
[]
[]
[null,null,null,null,null,null,null,null,null,null,null,null,null,null,null,null,"Colour","Score range"]
[null,null,null,null,null,null,null,null,null,null,null,null,null,null,null,null,null,"1.0-1.8"]
[null,null,null,null,null,null,null,null,null,null,null,null,null,null,null,null,null,"1.8-2.6"]
[null,null,null,null,null,null,null,null,null,null,null,null,null,null,null,null,null,"2.6-3.4"]
[null,null,null,null,null,null,null,null,null,null,null,null,null,null,null,null,null,"3.4-4.2"]
[null,null,null,null,null,null,null,null,null,null,null,null,null,null,null,null,null,"4.2-5.0"]